fUST/lending_fUST_20250507
["ID","MTS","AMOUNT","RATE_DAILY","PERIOD"]
[360196856,1746615038982,-400.0,0.00013698,2]
[360196857,1746615038991,-221.53972231,0.00013698,2]
[360196859,1746615039001,-868.32,0.00013698,2]
[360196861,1746615039010,-400.0,0.00013698,2]
[360196863,1746615039019,-460.29527748,0.00013698,2]
[360196865,1746615039029,-303.24409645,0.00013698,2]
[360196868,1746615039039,-500.0,0.00013698,2]
[360196870,1746615039048,-402.35,0.00013698,2]
[360196872,1746615039058,-400.0,0.00013698,2]
[360196874,1746615039067,-400.0,0.00013698,2]
[360196876,1746615039077,-400.0,0.00013698,2]
[360196878,1746615039086,-419.19,0.00013698,2]
[360196880,1746615039095,-1833.44,0.00013698,2]
[360196882,1746615039104,-400.0,0.00013698,2]
[360196884,1746615039113,-402.85,0.00013698,2]
[360196886,1746615039122,-400.0,0.00013698,2]
[360196887,1746615039132,-1313.28,0.00013698,2]
[360196889,1746615039141,-400.0,0.00013698,2]
[360196891,1746615039150,-538.16,0.00013698,2]
[360196893,1746615039160,-400.0,0.00013698,2]
[360196895,1746615039169,-567.37,0.00013698,2]
[360196897,1746615039179,-400.0,0.00013698,2]
[360196899,1746615039188,-424.65,0.00013698,2]
[360196901,1746615039198,-503.53,0.00013698,2]
[360196903,1746615039207,-400.0,0.00013698,2]
[360196905,1746615039217,-400.0,0.00013698,2]
[360196907,1746615039226,-400.0,0.00013698,2]
[360196909,1746615039235,-400.0,0.00013698,2]
[360196911,1746615039245,-2827.77,0.00013698,2]
[360196913,1746615039254,-400.0,0.00013698,2]
[360196915,1746615039263,-815.6,0.00013698,2]
[360196917,1746615039272,-1700.49,0.00013698,2]
[360196919,1746615039281,-400.0,0.00013698,2]
[360196921,1746615039290,-400.0,0.00013698,2]
[360196923,1746615039299,-401.20978467,0.00013698,2]
[360196925,1746615039308,-400.0,0.00013698,2]
[360196927,1746615039317,-421.54,0.00013698,2]
[360196929,1746615039327,-400.0,0.00013698,2]
[360196931,1746615039336,-405.86742929,0.00013698,2]
[360196933,1746615039346,-400.0,0.00013698,2]
[360196935,1746615039355,-541.18354158,0.00013698,2]
[360196937,1746615039364,-1267.2,0.00013698,2]
[360196939,1746615039373,-400.0,0.00013698,2]
[360196941,1746615039383,-400.0,0.00013698,2]
[360196943,1746615039392,-154.605948,0.00013698,2]
[360196945,1746615039402,-400.0,0.00013698,2]
[360196947,1746615039411,-400.0,0.00013698,2]
[360196949,1746615039420,-400.0,0.00013698,2]
[360196951,1746615039429,-400.0,0.00013698,2]
[360196953,1746615039438,-158.164995,0.00013698,2]
[360196955,1746615039447,-579.24,0.00013698,2]
[360196957,1746615039456,-441.95580906,0.00013698,2]
[360196959,1746615039465,-400.0,0.00013698,2]
[360196961,1746615039474,-400.0,0.00013698,2]
[360196963,1746615039483,-404.75792565,0.00013698,2]
[360196965,1746615039492,-400.0,0.00013698,2]
[360196967,1746615039502,-400.0,0.00013698,2]
[360196969,1746615039511,-400.0,0.00013698,2]
[360196971,1746615039521,-1606.03,0.00013698,2]
[360196973,1746615039530,-358.0,0.00013698,2]
[360196975,1746615039538,-400.0,0.00013698,2]
[360196977,1746615039547,-385.46388326,0.00013698,2]
[360196979,1746615039557,-400.0,0.00013698,2]
[360196981,1746615039566,-405.97922302,0.00013698,2]
[360196983,1746615039575,-1000.0,0.00013698,2]
[360196994,1746615039724,-400.0,0.00013698,2]
[360196996,1746615039735,-400.0,0.00013698,2]
[360196997,1746615039745,-579.39,0.00013698,2]
[360196998,1746615039755,-400.0,0.00013698,2]
[360196999,1746615039764,-400.0,0.00013698,2]
[360197000,1746615039774,-400.0,0.00013698,2]
[360197001,1746615039783,-152.208914,0.00013698,2]
[360197002,1746615039793,-400.0,0.00013698,2]
[360197003,1746615039803,-400.0,0.00013698,2]
[360197004,1746615039812,-400.0,0.00013698,2]
[360197005,1746615039823,-151.0,0.00013698,2]
[360197006,1746615039832,-151.0,0.00013698,2]
[360197007,1746615039842,-2968.32,0.00013698,2]
[360197008,1746615039851,-516.221489,0.00013698,2]
[360197009,1746615039861,-151.0,0.00013698,2]
[360197010,1746615039871,-591.22,0.00013698,2]
[360197012,1746615039880,-400.0,0.00013698,2]
[360197014,1746615039893,-941.17005053,0.00013698,2]
[360197015,1746615039915,-91.48994947,0.00013698,2]
[360197016,1746615039925,-1384.16,0.00013698,2]
[360197017,1746615039935,-400.0,0.00013698,2]
[360197018,1746615039945,-400.0,0.00013698,2]
[360197019,1746615039956,-400.0,0.00013698,2]
[360197020,1746615039968,-281.75005057,0.00013698,2]
[360197021,1746615039984,-118.24994943,0.00013698,2]
[360197023,1746615039994,-400.0,0.00013698,2]
[360197025,1746615040004,-400.0,0.00013698,2]
[360197026,1746615040013,-151.0,0.00013698,2]
[360197027,1746615040023,-400.0,0.00013698,2]
[360197028,1746615040032,-151.0,0.00013698,2]
[360197029,1746615040041,-400.0,0.00013698,2]
[360197030,1746615040050,-151.0,0.00013698,2]
[360197031,1746615040061,-151.0,0.00013698,2]
[360197032,1746615040070,-400.0,0.00013698,2]
[360197033,1746615040080,-788.54,0.00013698,2]
[360197034,1746615040089,-840.46,0.00013698,2]
[360197035,1746615040099,-400.0,0.00013698,2]
[360197036,1746615040108,-147.96801951,0.00013698,2]
[360197311,1746615043658,-60.26946646,0.00013698,2]
[360197313,1746615043668,-449.97,0.00013698,2]
[360197315,1746615043678,-496.5,0.00013698,2]
[360197317,1746615043688,-400.0,0.00013698,2]
[360197319,1746615043698,-400.0,0.00013698,2]
[360197321,1746615043707,-400.0,0.00013698,2]
[360197323,1746615043717,-859.66,0.00013698,2]
[360197325,1746615043727,-1610.07,0.00013698,2]
[360197327,1746615043737,-533.4332265,0.00013698,2]
[360197329,1746615043747,-400.0,0.00013698,2]
[360197331,1746615043756,-400.0,0.00013698,2]
[360197333,1746615043766,-400.0,0.00013698,2]
[360197335,1746615043775,-1502.88,0.00013698,2]
[360197337,1746615043785,-400.0,0.00013698,2]
[360197339,1746615043795,-271.59266938,0.00013698,2]
[360197395,1746615046606,-222.75574324,0.00012312,2]
[360197396,1746615046621,-245.009,0.00013341,2]
[360197397,1746615046636,-128.40733062,0.00013698,2]
[360197398,1746615046649,-400.0,0.00013698,2]
[360197399,1746615046663,-400.0,0.00013698,2]
[360197400,1746615046678,-400.0,0.00013698,2]
[360197401,1746615046694,-196.0844943,0.00013698,2]
[360197402,1746615046709,-1321.9655057,0.00013698,2]
[360197403,1746615046720,-206.0845718,0.00013698,2]
[360197404,1746615046729,-594.81,0.00013698,2]
[360197405,1746615046739,-400.0,0.00013698,2]
[360197406,1746615046748,-400.0,0.00013698,2]
[360197407,1746615046757,-528.08,0.00013698,2]
[360197408,1746615046767,-400.0,0.00013698,2]
[360197409,1746615046776,-400.0,0.00013698,2]
[360197410,1746615046786,-153.70065138,0.00013698,2]
[360197425,1746615160033,-300.0,0.0001231,2]
[360197426,1746615160056,-333.44320217,0.00012311,2]
[360197427,1746615160079,-548.25353974,0.00012311,2]
[360197428,1746615160104,-500.0,0.00012311,2]
[360197429,1746615160125,-500.0,0.00012311,2]
[360197430,1746615160145,-500.0,0.00012311,2]
[360197431,1746615160166,-500.0,0.00012311,2]
[360197432,1746615160187,-500.0,0.00012311,2]
[360197433,1746615160209,-500.0,0.00012311,2]
[360197434,1746615160230,-500.0,0.00012311,2]
[360197435,1746615160255,-500.0,0.00012311,2]
[360197436,1746615160277,-500.0,0.00012311,2]
[360197437,1746615160302,-500.0,0.00012311,2]
[360197438,1746615160328,-341.13844354,0.00012311,2]
[360197439,1746615160354,-500.0,0.00012311,2]
[360197440,1746615160379,-500.0,0.00012311,2]
[360197441,1746615160403,-500.0,0.00012311,2]
[360197442,1746615160427,-650.0,0.00012311,2]
[360197443,1746615160449,-500.0,0.00012311,2]
[360197444,1746615160472,-608.48043243,0.00012311,2]
[360197445,1746615160504,-500.0,0.00012311,2]
[360197446,1746615160534,-500.0,0.00012311,2]
[360197447,1746615160561,-500.0,0.00012311,2]
[360197448,1746615160588,-500.0,0.00012311,2]
[360197449,1746615160614,-500.0,0.00012311,2]
[360197450,1746615160641,-500.0,0.00012311,2]
[360197451,1746615160667,-500.0,0.00012311,2]
[360197452,1746615160694,-500.0,0.00012311,2]
[360197453,1746615160721,-500.0,0.00012311,2]
[360197454,1746615160749,-500.0,0.00012311,2]
[360197455,1746615160777,-218.68438212,0.00012311,2]
[360197456,1746615214845,-1000.0,0.00012211,2]
[360197457,1746615214867,-300.0,0.0001231,2]
[360197458,1746615214899,-281.31561788,0.00012311,2]
[360197459,1746615214929,-500.0,0.00012311,2]
[360197460,1746615214961,-500.0,0.00012311,2]
[360197461,1746615214991,-500.0,0.00012311,2]
[360197462,1746615215020,-500.0,0.00012311,2]
[360197463,1746615215052,-500.0,0.00012311,2]
[360197464,1746615215079,-500.0,0.00012311,2]
[360197465,1746615215106,-500.0,0.00012311,2]
[360197466,1746615215133,-500.0,0.00012311,2]
[360197467,1746615215161,-500.0,0.00012311,2]
[360197468,1746615215188,-500.0,0.00012311,2]
[360197469,1746615215215,-500.0,0.00012311,2]
[360197470,1746615215244,-500.0,0.00012311,2]
[360197471,1746615215274,-500.0,0.00012311,2]
[360197472,1746615215301,-500.0,0.00012311,2]
[360197473,1746615215329,-500.0,0.00012311,2]
[360197474,1746615215359,-500.0,0.00012311,2]
[360197475,1746615215388,-418.68438212,0.00012311,2]
[360197497,1746616163763,2010.6828997,0.00022,30]
[360197516,1746616232685,-686.42803948,0.00012193,2]
[360197517,1746616232696,-151.0,0.00012288,2]
[360197518,1746616232707,-300.0,0.00012291,2]
[360197519,1746616232719,-300.0,0.00012291,2]
[360197520,1746616232729,-639.0,0.00012291,2]
[360197521,1746616232739,-300.0,0.00012291,2]
[360197522,1746616232751,-500.79579122,0.00012292,2]
[360197524,1746616232761,-178.72004805,0.00012292,2]
[360197526,1746616232772,-500.0,0.00012292,2]
[360197528,1746616232783,-500.0,0.00012292,2]
[360197530,1746616232793,-500.0,0.00012292,2]
[360197532,1746616232804,-500.0,0.00012292,2]
[360197534,1746616232814,-500.0,0.00012292,2]
[360197536,1746616232824,-500.0,0.00012292,2]
[360197538,1746616232835,-500.0,0.00012292,2]
[360197540,1746616232845,-500.0,0.00012292,2]
[360197542,1746616232855,-500.0,0.00012292,2]
[360197544,1746616232866,-500.0,0.00012292,2]
[360197546,1746616232876,-500.0,0.00012292,2]
[360197549,1746616232887,-500.0,0.00012292,2]
[360197552,1746616232898,-500.0,0.00012292,2]
[360197556,1746616232909,-500.0,0.00012292,2]
[360197559,1746616232919,-500.0,0.00012292,2]
[360197560,1746616232930,-500.0,0.00012292,2]
[360197562,1746616232940,-500.0,0.00012292,2]
[360197565,1746616232950,-366.74150958,0.00012292,2]
[360197566,1746616232960,-500.0,0.00012292,2]
[360197568,1746616232970,-500.0,0.00012292,2]
[360197571,1746616232980,-500.0,0.00012292,2]
[360197573,1746616232991,-500.0,0.00012292,2]
[360197575,1746616233001,-500.0,0.00012292,2]
[360197577,1746616233012,-500.0,0.00012292,2]
[360197579,1746616233022,-500.0,0.00012292,2]
[360197580,1746616233033,-500.0,0.00012292,2]
[360197582,1746616233045,-411.53046114,0.00012292,2]
[360197585,1746616233060,-88.46953886,0.00012292,2]
[360197587,1746616233070,-500.0,0.00012292,2]
[360197589,1746616233082,-500.0,0.00012292,2]
[360197591,1746616233092,-500.0,0.00012292,2]
[360197593,1746616233103,-500.0,0.00012292,2]
[360197595,1746616233114,-500.0,0.00012292,2]
[360197597,1746616233125,-500.0,0.00012292,2]
[360197599,1746616233135,-500.0,0.00012292,2]
[360197601,1746616233146,-598.20644038,0.00012292,2]
[360197603,1746616233159,-500.0,0.00012292,2]
[360197605,1746616233171,-500.0,0.00012292,2]
[360197607,1746616233182,-500.0,0.00012292,2]
[360197609,1746616233194,-500.0,0.00012292,2]
[360197611,1746616233206,-500.0,0.00012292,2]
[360197613,1746616233216,-500.0,0.00012292,2]
[360197615,1746616233226,-500.0,0.00012292,2]
[360197617,1746616233236,-500.0,0.00012292,2]
[360197619,1746616233247,-500.0,0.00012292,2]
[360197621,1746616233257,-500.0,0.00012292,2]
[360197623,1746616233268,-500.0,0.00012292,2]
[360197625,1746616233279,-500.0,0.00012292,2]
[360197627,1746616233289,-500.0,0.00012292,2]
[360197629,1746616233299,-500.0,0.00012292,2]
[360197631,1746616233309,-500.0,0.00012292,2]
[360197633,1746616233320,-500.0,0.00012292,2]
[360197635,1746616233330,-500.0,0.00012292,2]
[360197637,1746616233340,-500.0,0.00012292,2]
[360197639,1746616233350,-500.0,0.00012292,2]
[360197641,1746616233361,-500.0,0.00012292,2]
[360197643,1746616233371,-500.0,0.00012292,2]
[360197645,1746616233382,-500.0,0.00012292,2]
[360197647,1746616233392,-500.0,0.00012292,2]
[360197649,1746616233404,-500.0,0.00012292,2]
[360197651,1746616233415,-500.0,0.00012292,2]
[360197653,1746616233425,-500.0,0.00012292,2]
[360197655,1746616233435,-500.0,0.00012292,2]
[360197657,1746616233446,-298.98180556,0.00012292,2]
[360197660,1746616233456,-500.0,0.00012292,2]
[360197662,1746616233467,-500.0,0.00012292,2]
[360197664,1746616233478,-500.0,0.00012292,2]
[360197666,1746616233488,-500.0,0.00012292,2]
[360197668,1746616233498,-500.0,0.00012292,2]
[360197670,1746616233509,-500.0,0.00012292,2]
[360197672,1746616233520,-500.0,0.00012292,2]
[360197674,1746616233531,-500.0,0.00012292,2]
[360197676,1746616233541,-500.0,0.00012292,2]
[360197678,1746616233551,-500.0,0.00012292,2]
[360197680,1746616233561,-500.0,0.00012292,2]
[360197682,1746616233572,-500.0,0.00012292,2]
[360197684,1746616233582,-500.0,0.00012292,2]
[360197686,1746616233597,-500.0,0.00012292,2]
[360197688,1746616233608,-500.0,0.00012292,2]
[360197690,1746616233619,-500.0,0.00012292,2]
[360197693,1746616233631,-500.0,0.00012292,2]
[360197695,1746616233642,-500.0,0.00012292,2]
[360197696,1746616233652,-500.0,0.00012292,2]
[360197698,1746616233662,-500.0,0.00012292,2]
[360197700,1746616233673,-500.0,0.00012292,2]
[360197702,1746616233684,-500.0,0.00012292,2]
[360197704,1746616233695,-500.0,0.00012292,2]
[360197707,1746616233705,-500.0,0.00012292,2]
[360197708,1746616233716,-500.0,0.00012292,2]
[360197711,1746616233727,-500.0,0.00012292,2]
[360197712,1746616233736,-500.0,0.00012292,2]
[360197714,1746616233748,-500.0,0.00012292,2]
[360197716,1746616233758,-500.0,0.00012292,2]
[360197718,1746616233768,-500.0,0.00012292,2]
[360197721,1746616233779,-500.0,0.00012292,2]
[360197723,1746616233790,-500.0,0.00012292,2]
[360197724,1746616233801,-500.0,0.00012292,2]
[360197726,1746616233811,-500.0,0.00012292,2]
[360197729,1746616233822,-500.0,0.00012292,2]
[360197731,1746616233833,-500.0,0.00012292,2]
[360197733,1746616233844,-500.0,0.00012292,2]
[360197735,1746616233853,-500.0,0.00012292,2]
[360197737,1746616233864,-500.0,0.00012292,2]
[360197738,1746616233873,-350.0,0.00012292,2]
[360197741,1746616233884,-500.0,0.00012292,2]
[360197743,1746616233895,-500.0,0.00012292,2]
[360197745,1746616233905,-500.0,0.00012292,2]
[360197747,1746616233915,-500.0,0.00012292,2]
[360197749,1746616233926,-500.0,0.00012292,2]
[360197751,1746616233937,-500.0,0.00012292,2]
[360197753,1746616233948,-500.0,0.00012292,2]
[360197755,1746616233959,-500.0,0.00012292,2]
[360197756,1746616233969,-500.0,0.00012292,2]
[360197759,1746616233979,-500.0,0.00012292,2]
[360197761,1746616233990,-500.0,0.00012292,2]
[360197763,1746616234001,-500.0,0.00012292,2]
[360197765,1746616234011,-500.0,0.00012292,2]
[360197767,1746616234022,-500.0,0.00012292,2]
[360197769,1746616234032,-500.0,0.00012292,2]
[360197771,1746616234042,-500.0,0.00012292,2]
[360197772,1746616234052,-50000.0,0.00012293,2]
[360197774,1746616234063,-5000.0,0.000123,2]
[360197777,1746616234075,-686.42803944,0.00012613,2]
[360197779,1746616234085,-10308.12037375,0.000127,2]
[360197781,1746616234095,-200.13217035,0.00013,3]
[360197782,1746616234105,-207.4,0.00013012,2]
[360197785,1746616234115,-686.42803944,0.00013033,2]
[360197787,1746616234126,-150.0,0.00013341,2]
[360197789,1746616234136,-150.0,0.00013341,2]
[360197790,1746616234146,-150.0,0.00013341,2]
[360197792,1746616234157,-150.0,0.00013341,2]
[360197794,1746616234167,-546.0,0.00013341,2]
[360197796,1746616234178,-2241.0,0.00013341,2]
[360197798,1746616234188,-708.0,0.00013341,2]
[360197801,1746616234199,-404.0,0.00013341,2]
[360197803,1746616234209,-404.0,0.00013341,2]
[360197805,1746616234220,-686.42803944,0.00013452,2]
[360197806,1746616234231,-420.0,0.00013489,2]
[360197808,1746616234242,-474.41773606,0.00013563,2]
[360197810,1746616234253,-1724.46829325,0.00013597,2]
[360197813,1746616234263,-916.4413649,0.00013629,2]
[360197815,1746616234273,-400.0,0.00013698,2]
[360197817,1746616234284,-400.0,0.00013698,2]
[360197819,1746616234294,-400.0,0.00013698,2]
[360197820,1746616234306,-400.0,0.00013698,2]
[360197823,1746616234317,-400.0,0.00013698,2]
[360197825,1746616234327,-400.0,0.00013698,2]
[360197827,1746616234337,-400.0,0.00013698,2]
[360197829,1746616234347,-400.0,0.00013698,2]
[360197831,1746616234357,-410.35005659,0.00013698,2]
[360197833,1746616234367,-400.0,0.00013698,2]
[360197835,1746616234377,-400.0,0.00013698,2]
[360197836,1746616234387,-497.71066555,0.00013698,2]
[360197839,1746616234397,-400.0,0.00013698,2]
[360197840,1746616234407,-400.0,0.00013698,2]
[360197843,1746616234417,-400.0,0.00013698,2]
[360197845,1746616234428,-400.0,0.00013698,2]
[360197847,1746616234438,-400.0,0.00013698,2]
[360197849,1746616234449,-400.0,0.00013698,2]
[360197851,1746616234460,-400.0,0.00013698,2]
[360197853,1746616234470,-400.0,0.00013698,2]
[360197855,1746616234480,-400.0,0.00013698,2]
[360197857,1746616234489,-400.0,0.00013698,2]
[360197859,1746616234499,-360.09657147,0.00013698,2]
[360197860,1746616234508,-406.96,0.00013698,2]
[360197863,1746616234519,-400.0,0.00013698,2]
[360197864,1746616234528,-358.0,0.00013698,2]
[360197867,1746616234538,-400.0,0.00013698,2]
[360197869,1746616234549,-199.27051207,0.00013698,2]
[360197870,1746616234559,-211.37246154,0.00013698,2]
[360197873,1746616234569,-400.0,0.00013698,2]
[360197875,1746616234579,-154.24886199,0.00013698,2]
[360197877,1746616234590,-403.97,0.00013698,2]
[360197879,1746616234600,-400.0,0.00013698,2]
[360197881,1746616234610,-401.66772259,0.00013698,2]
[360197883,1746616234620,-1214.4,0.00013698,2]
[360197885,1746616234630,-400.0,0.00013698,2]
[360197887,1746616234639,-400.0,0.00013698,2]
[360197889,1746616234648,-400.0,0.00013698,2]
[360197891,1746616234657,-400.0,0.00013698,2]
[360197893,1746616234667,-555.11,0.00013698,2]
[360197895,1746616234676,-400.0,0.00013698,2]
[360197897,1746616234686,-1000.0,0.00013698,2]
[360197899,1746616234696,-400.0,0.00013698,2]
[360197901,1746616234705,-400.0,0.00013698,2]
[360197903,1746616234715,-500.0,0.00013698,2]
[360197905,1746616234724,-400.0,0.00013698,2]
[360197907,1746616234734,-400.0,0.00013698,2]
[360197909,1746616234743,-400.0,0.00013698,2]
[360197911,1746616234752,-400.0,0.00013698,2]
[360197913,1746616234762,-281.6169322,0.00013698,2]
[360197915,1746616234771,-400.0,0.00013698,2]
[360197917,1746616234782,-500.0,0.00013698,2]
[360197919,1746616234792,-400.0,0.00013698,2]
[360197921,1746616234801,-527.76461409,0.00013698,2]
[360197923,1746616234810,-400.0,0.00013698,2]
[360197925,1746616234819,-570.03,0.00013698,2]
[360197927,1746616234829,-405.05539357,0.00013698,2]
[360197929,1746616234839,-400.0,0.00013698,2]
[360197931,1746616234848,-430.3,0.00013698,2]
[360197933,1746616234857,-992.17,0.00013698,2]
[360197935,1746616234867,-400.0,0.00013698,2]
[360197937,1746616234876,-400.0,0.00013698,2]
[360197939,1746616234885,-400.0,0.00013698,2]
[360197941,1746616234894,-400.0,0.00013698,2]
[360197943,1746616234903,-400.0,0.00013698,2]
[360197945,1746616234913,-500.0,0.00013698,2]
[360197947,1746616234922,-400.0,0.00013698,2]
[360197949,1746616234932,-400.0,0.00013698,2]
[360197951,1746616234941,-400.0,0.00013698,2]
[360197953,1746616234951,-400.0,0.00013698,2]
[360197955,1746616234960,-400.0,0.00013698,2]
[360197957,1746616234969,-1757.04,0.00013698,2]
[360197959,1746616234979,-400.0,0.00013698,2]
[360197961,1746616234988,-657.48,0.00013698,2]
[360197963,1746616234997,-400.0,0.00013698,2]
[360197988,1746616235223,-400.0,0.00013698,2]
[360197991,1746616235234,-1258.56,0.00013698,2]
[360197993,1746616235243,-400.0,0.00013698,2]
[360197995,1746616235252,-406.38,0.00013698,2]
[360197997,1746616235261,-515.74,0.00013698,2]
[360197999,1746616235271,-555.25,0.00013698,2]
[360198001,1746616235280,-216.18599146,0.00013698,2]
[360198003,1746616235289,-400.0,0.00013698,2]
[360198005,1746616235298,-400.0,0.00013698,2]
[360198007,1746616235307,-660.2,0.00013698,2]
[360198009,1746616235316,-412.26721861,0.00013698,2]
[360198011,1746616235326,-2709.94,0.00013698,2]
[360198013,1746616235335,-400.0,0.00013698,2]
[360198015,1746616235343,-566.59,0.00013698,2]
[360198017,1746616235352,-400.0,0.00013698,2]
[360198019,1746616235362,-1051.55283627,0.00013698,2]
[360198021,1746616235371,-400.0,0.00013698,2]
[360198023,1746616235380,-400.0,0.00013698,2]
[360198025,1746616235389,-400.0,0.00013698,2]
[360198026,1746616235398,-414.8303679,0.00013698,2]
[360198028,1746616235407,-400.0,0.00013698,2]
[360198031,1746616235419,-714.42,0.00013698,2]
[360198033,1746616235432,-599.07,0.00013698,2]
[360198035,1746616235440,-412.09746734,0.00013698,2]
[360198037,1746616235450,-161.62491888,0.00013698,2]
[360198039,1746616235459,-543.73,0.00013698,2]
[360198041,1746616235468,-407.26282027,0.00013698,2]
[360198043,1746616235477,-301.32485666,0.00013698,2]
[360198045,1746616235486,-461.61600398,0.00013698,2]
[360198047,1746616235495,-427.93905887,0.00013698,2]
[360198049,1746616235505,-400.0,0.00013698,2]
[360198051,1746616235513,-416.85940828,0.00013698,2]
[360198053,1746616235522,-400.0,0.00013698,2]
[360198055,1746616235531,-400.0,0.00013698,2]
[360198057,1746616235541,-192.82801178,0.00013698,2]
[360198059,1746616235550,-832.14,0.00013698,2]
[360198061,1746616235559,-400.0,0.00013698,2]
[360198063,1746616235569,-400.0,0.00013698,2]
[360198065,1746616235578,-400.0,0.00013698,2]
[360198067,1746616235588,-208.95618248,0.00013698,2]
[360198069,1746616235601,-409.35206456,0.00013698,2]
[360198071,1746616235610,-400.0,0.00013698,2]
[360198072,1746616235619,-401.73,0.00013698,2]
[360198074,1746616235628,-400.0,0.00013698,2]
[360198076,1746616235639,-400.0,0.00013698,2]
[360198078,1746616235648,-400.0,0.00013698,2]
[360198080,1746616235657,-1539.11,0.00013698,2]
[360198083,1746616235669,-340.67082901,0.00013698,2]
[360198085,1746616235679,-540.93686268,0.00013698,2]
[360198087,1746616235688,-402.95259345,0.00013698,2]
[360198089,1746616235698,-419.81832547,0.00013698,2]
[360198091,1746616235706,-400.0,0.00013698,2]
[360198093,1746616235715,-400.0,0.00013698,2]
[360198095,1746616235724,-400.0,0.00013698,2]
[360198097,1746616235734,-414.31367216,0.00013698,2]
[360198099,1746616235743,-400.0,0.00013698,2]
[360198101,1746616235753,-511.31251037,0.00013698,2]
[360198103,1746616235763,-400.0,0.00013698,2]
[360198105,1746616235772,-494.24,0.00013698,2]
[360198107,1746616235782,-400.0,0.00013698,2]
[360198109,1746616235791,-400.0,0.00013698,2]
[360198111,1746616235800,-1050.3,0.00013698,2]
[360198113,1746616235810,-400.0,0.00013698,2]
[360198115,1746616235820,-781.61,0.00013698,2]
[360198117,1746616235830,-400.0,0.00013698,2]
[360198119,1746616235840,-400.0,0.00013698,2]
[360198121,1746616235850,-409.26239157,0.00013698,2]
[360198123,1746616235860,-400.0,0.00013698,2]
[360198125,1746616235869,-400.0,0.00013698,2]
[360198127,1746616235878,-400.0,0.00013698,2]
[360198129,1746616235887,-1202.05,0.00013698,2]
[360198131,1746616235897,-400.0,0.00013698,2]
[360198133,1746616235907,-400.0,0.00013698,2]
[360198135,1746616235917,-400.0,0.00013698,2]
[360198137,1746616235927,-805.45,0.00013698,2]
[360198139,1746616235936,-712.84,0.00013698,2]
[360198141,1746616235946,-400.0,0.00013698,2]
[360198143,1746616235955,-478.64,0.00013698,2]
[360198145,1746616235964,-1939.09882768,0.00013698,2]
[360198149,1746616235991,-2784.32117232,0.00013698,2]
[360198151,1746616236001,-400.0,0.00013698,2]
[360198153,1746616236010,-400.0,0.00013698,2]
[360198155,1746616236019,-1542.98,0.00013698,2]
[360198157,1746616236028,-400.0,0.00013698,2]
[360198160,1746616236038,-400.0,0.00013698,2]
[360198162,1746616236048,-400.0,0.00013698,2]
[360198164,1746616236058,-160.85784456,0.00013698,2]
[360198166,1746616236067,-400.0,0.00013698,2]
[360198168,1746616236076,-2844.64,0.00013698,2]
[360198170,1746616236085,-414.44447558,0.00013698,2]